{"text_format":"1","workbook":"xlsx","n_sheets":11,"sheets":["Base de données","LISTES","Dépôt des Licences","Jury","Match 1 recto","Match 1 verso","Match 2 recto","Match 2 verso","Match 3 recto","Match 3 verso","Rapport sur la compatibilité"],"not_rendered":{"charts":0,"images":5,"macros":1,"external_links":0,"defined_names":17,"comments":0,"pivot_tables":0},"unopened":[],"bounds":{"document_bytes":16777216,"sheet_cells":100000,"rows_first":2000,"rows_last":500,"rows_between":2000,"halvings":0,"cell_chars":16384,"cell_head_chars":4096},"cells_cut":0,"cells_raw":0,"read":"whole","date_system":"1900"}

{"sheet":"Base de données","index":0,"n_rows":20,"n_cols":12,"rows_kept":20,"cut":false,"hidden":false,"merged":[]}
["Type de CRC","Jeu Provençal",null,null,null,null,null,null,null,null,null,"V20240304"]
["Date",null,"<------ taper la date sous la forme suivante : 16/10/23"]
["Heure",null,"<------ taper l'heure sous la forme suivante : 16:30"]
["Division - Groupe",null,"      Cliquer sur la flèche à droite de la cellule et choisir la division/groupe dans la liste proposée"]
["Lieu"]
[]
["Match 1 Nom du Club A",null,null,null,null,"<------ cliquer sur le bouton à gauche pour enregistrer les licences",null,null,null,null,null,{"$f":"IF('Dépôt des Licences'!A3=0,\"V\",\"F\")","v":"V"}]
["Match 1 Nom du Club B",null,null,null,null,"<------ cliquer sur le bouton à gauche pour enregistrer les licences",null,null,null,null,null,{"$f":"IF('Dépôt des Licences'!A25=0,\"V\",\"F\")","v":"V"}]
[]
["Match 2 Nom du Club A",null,null,null,null,"<------ cliquer sur le bouton à gauche pour enregistrer les licences",null,null,null,null,null,{"$f":"IF('Dépôt des Licences'!A47=0,\"V\",\"F\")","v":"V"}]
["Match 2 Nom du Club B",null,null,null,null,"<------ cliquer sur le bouton à gauche pour enregistrer les licences",null,null,null,null,null,{"$f":"IF('Dépôt des Licences'!A69=0,\"V\",\"F\")","v":"V"}]
[]
["Match 3 Nom du Club A",null,null,null,null,"<------ cliquer sur le bouton à gauche pour enregistrer les licences",null,null,null,null,null,{"$f":"IF('Dépôt des Licences'!A91=0,\"V\",\"F\")","v":"V"}]
["Match 3 Nom du Club B",null,null,null,null,"<------ cliquer sur le bouton à gauche pour enregistrer les licences",null,null,null,null,null,{"$f":"IF('Dépôt des Licences'!A113=0,\"V\",\"F\")","v":"V"}]
[]
["Nom du Délégué",null,"<------ taper le nom du délégué en majuscule"]
["Prénom du Délégué",null,"<------ taper le prénom du délégué avec son initiale en majuscule et la suite en minuscule"]
[]
["Nom de l'Arbitre",null,"<------ taper le nom de l'arbitre en majuscule"]
["Prénom de l'Arbitre",null,"<------ taper le prénom de l'arbitre avec son initiale en majuscule et la suite en minuscule"]

{"sheet":"LISTES","index":1,"n_rows":11,"n_cols":3,"rows_kept":11,"cut":false,"hidden":true,"merged":[]}
[null,"Type","Division"]
[null,"OPEN","D1- Gr1"]
[null,"FEMININ","D1- Gr2"]
[null,"VETERAN","D2- Gr1"]
[null,null,"D2- Gr2"]
[null,null,"D2- Gr3"]
[null,null,"D2- Gr4"]
[null,null,"Gr1"]
[null,null,"Gr2"]
[null,null,"Gr3"]
[null,null,"Gr4"]

{"sheet":"Dépôt des Licences","index":2,"n_rows":123,"n_cols":24,"rows_kept":123,"cut":false,"hidden":false,"merged":[[34,0,35,20],[122,0,123,20],[44,0,44,18],[45,9,45,13],[56,0,57,20],[66,0,66,18],[67,9,67,13],[78,0,79,20],[88,0,88,18],[89,9,89,13],[100,0,101,20],[110,0,110,18],[111,9,111,13],[22,0,22,18],[23,9,23,13],[12,0,13,20],[1,9,1,13],[0,0,0,18]]}
[{"$f":"\"Passez La licence : Capitaine en Premier en cellule A3 fond jaune, puis les joueurs à partir de A4\"","v":"Passez La licence : Capitaine en Premier en cellule A3 fond jaune, puis les joueurs à partir de A4"},null,null,null,null,null,null,null,null,null,null,null,null,null,null,null,null,null,null,null,{"$f":"YEAR(V1)","v":2024},{"$f":"TODAY()","v":45355}]
["Nom","Prénom","Date Nais.","Nat.","Sexe",null,null,"N° Licence","N° Club",null,null,null,null,null,"Certificat","AR","Clas.","Cat.","Mut."]
[null,null,null,null,null,null,null,null,null,null,null,null,null,null,null,null,null,null,null,null,"C"]
[null,null,null,null,null,null,null,null,null,null,null,null,null,null,null,null,null,null,null,null,1]
[null,null,null,null,null,null,null,null,null,null,null,null,null,null,null,null,null,null,null,null,2]
[null,null,null,null,null,null,null,null,null,null,null,null,null,null,null,null,null,null,null,null,3]
[null,null,null,null,null,null,null,null,null,null,null,null,null,null,null,null,null,null,null,null,4]
[null,null,null,null,null,null,null,null,null,null,null,null,null,null,null,null,null,null,null,null,5]
[null,null,null,null,null,null,null,null,null,null,null,null,null,null,null,null,null,null,null,null,6]
[null,null,null,null,null,null,null,null,null,null,null,null,null,null,null,null,null,null,null,null,7]
[null,null,null,null,null,null,null,null,null,null,null,null,null,null,null,null,null,null,null,null,8,null,{"$f":"'Base de données'!B1","v":"Jeu Provençal"},{"$f":"IF(W11=\"FEMININ\",\"F\",\"\")","v":""}]
[null,null,null,null,null,null,null,null,null,null,null,null,null,null,null,null,null,null,null,null,null,null,{"$f":"'Base de données'!B1","v":"Jeu Provençal"},{"$f":"IF(W12=\"VETERAN\",\"V\",\"\")","v":""}]
[{"$f":"'Base de données'!B7","v":0}]
[]
[]
[]
[]
[]
[]
[]
[]
[]
[{"$f":"\"Passez La licence : Capitaine en Premier en cellule A25 fond jaune, puis les joueurs à partir de A26\"","v":"Passez La licence : Capitaine en Premier en cellule A25 fond jaune, puis les joueurs à partir de A26"},null,null,null,null,null,null,null,null,null,null,null,null,null,null,null,null,null,null,null,{"$f":"YEAR(V23)","v":2024},{"$f":"TODAY()","v":45355}]
["Nom","Prénom","Date Nais.","Nat.","Sexe",null,null,"N° Licence","N° Club",null,null,null,null,null,"Certificat","AR","Clas.","Cat.","Mut."]
[null,null,null,null,null,null,null,null,null,null,null,null,null,null,null,null,null,null,null,null,"C"]
[null,null,null,null,null,null,null,null,null,null,null,null,null,null,null,null,null,null,null,null,1]
[null,null,null,null,null,null,null,null,null,null,null,null,null,null,null,null,null,null,null,null,2]
[null,null,null,null,null,null,null,null,null,null,null,null,null,null,null,null,null,null,null,null,3]
[null,null,null,null,null,null,null,null,null,null,null,null,null,null,null,null,null,null,null,null,4]
[null,null,null,null,null,null,null,null,null,null,null,null,null,null,null,null,null,null,null,null,5]
[null,null,null,null,null,null,null,null,null,null,null,null,null,null,null,null,null,null,null,null,6]
[null,null,null,null,null,null,null,null,null,null,null,null,null,null,null,null,null,null,null,null,7]
[null,null,null,null,null,null,null,null,null,null,null,null,null,null,null,null,null,null,null,null,8]
[]
[{"$f":"'Base de données'!B8","v":0}]
[]
[]
[]
[]
[]
[]
[]
[]
[]
[{"$f":"\"Passez La licence : Capitaine en Premier en cellule A47 fond jaune, puis les joueurs à partir de A48\"","v":"Passez La licence : Capitaine en Premier en cellule A47 fond jaune, puis les joueurs à partir de A48"},null,null,null,null,null,null,null,null,null,null,null,null,null,null,null,null,null,null,null,{"$f":"YEAR(V45)","v":2024},{"$f":"TODAY()","v":45355}]
["Nom","Prénom","Date Nais.","Nat.","Sexe",null,null,"N° Licence","N° Club",null,null,null,null,null,"Certificat","AR","Clas.","Cat.","Mut."]
[null,null,null,null,null,null,null,null,null,null,null,null,null,null,null,null,null,null,null,null,"C"]
[null,null,null,null,null,null,null,null,null,null,null,null,null,null,null,null,null,null,null,null,1]
[null,null,null,null,null,null,null,null,null,null,null,null,null,null,null,null,null,null,null,null,2]
[null,null,null,null,null,null,null,null,null,null,null,null,null,null,null,null,null,null,null,null,3]
[null,null,null,null,null,null,null,null,null,null,null,null,null,null,null,null,null,null,null,null,4]
[null,null,null,null,null,null,null,null,null,null,null,null,null,null,null,null,null,null,null,null,5]
[null,null,null,null,null,null,null,null,null,null,null,null,null,null,null,null,null,null,null,null,6]
[null,null,null,null,null,null,null,null,null,null,null,null,null,null,null,null,null,null,null,null,7]
[null,null,null,null,null,null,null,null,null,null,null,null,null,null,null,null,null,null,null,null,8]
[]
[{"$f":"'Base de données'!B10","v":0}]
[]
[]
[]
[]
[]
[]
[]
[]
[]
[{"$f":"\"Passez La licence : Capitaine en Premier en cellule A69 fond jaune, puis les joueurs à partir de A70\"","v":"Passez La licence : Capitaine en Premier en cellule A69 fond jaune, puis les joueurs à partir de A70"},null,null,null,null,null,null,null,null,null,null,null,null,null,null,null,null,null,null,null,{"$f":"YEAR(V67)","v":2024},{"$f":"TODAY()","v":45355}]
["Nom","Prénom","Date Nais.","Nat.","Sexe",null,null,"N° Licence","N° Club",null,null,null,null,null,"Certificat","AR","Clas.","Cat.","Mut."]
[null,null,null,null,null,null,null,null,null,null,null,null,null,null,null,null,null,null,null,null,"C"]
[null,null,null,null,null,null,null,null,null,null,null,null,null,null,null,null,null,null,null,null,1]
[null,null,null,null,null,null,null,null,null,null,null,null,null,null,null,null,null,null,null,null,2]
[null,null,null,null,null,null,null,null,null,null,null,null,null,null,null,null,null,null,null,null,3]
[null,null,null,null,null,null,null,null,null,null,null,null,null,null,null,null,null,null,null,null,4]
[null,null,null,null,null,null,null,null,null,null,null,null,null,null,null,null,null,null,null,null,5]
[null,null,null,null,null,null,null,null,null,null,null,null,null,null,null,null,null,null,null,null,6]
[null,null,null,null,null,null,null,null,null,null,null,null,null,null,null,null,null,null,null,null,7]
[null,null,null,null,null,null,null,null,null,null,null,null,null,null,null,null,null,null,null,null,8]
[]
[{"$f":"'Base de données'!B11","v":0}]
[]
[]
[]
[]
[]
[]
[]
[]
[]
[{"$f":"\"Passez La licence : Capitaine en Premier en cellule A91 fond jaune, puis les joueurs à partir de A92\"","v":"Passez La licence : Capitaine en Premier en cellule A91 fond jaune, puis les joueurs à partir de A92"},null,null,null,null,null,null,null,null,null,null,null,null,null,null,null,null,null,null,null,{"$f":"YEAR(V89)","v":2024},{"$f":"TODAY()","v":45355}]
["Nom","Prénom","Date Nais.","Nat.","Sexe",null,null,"N° Licence","N° Club",null,null,null,null,null,"Certificat","AR","Clas.","Cat.","Mut."]
[null,null,null,null,null,null,null,null,null,null,null,null,null,null,null,null,null,null,null,null,"C"]
[null,null,null,null,null,null,null,null,null,null,null,null,null,null,null,null,null,null,null,null,1]
[null,null,null,null,null,null,null,null,null,null,null,null,null,null,null,null,null,null,null,null,2]
[null,null,null,null,null,null,null,null,null,null,null,null,null,null,null,null,null,null,null,null,3]
[null,null,null,null,null,null,null,null,null,null,null,null,null,null,null,null,null,null,null,null,4]
[null,null,null,null,null,null,null,null,null,null,null,null,null,null,null,null,null,null,null,null,5]
[null,null,null,null,null,null,null,null,null,null,null,null,null,null,null,null,null,null,null,null,6]
[null,null,null,null,null,null,null,null,null,null,null,null,null,null,null,null,null,null,null,null,7]
[null,null,null,null,null,null,null,null,null,null,null,null,null,null,null,null,null,null,null,null,8]
[]
[{"$f":"'Base de données'!B13","v":0}]
[]
[]
[]
[]
[]
[]
[]
[]
[]
[{"$f":"\"Passez La licence : Capitaine en Premier en cellule A113 fond jaune, puis les joueurs à partir de A114\"","v":"Passez La licence : Capitaine en Premier en cellule A113 fond jaune, puis les joueurs à partir de A114"},null,null,null,null,null,null,null,null,null,null,null,null,null,null,null,null,null,null,null,{"$f":"YEAR(V111)","v":2024},{"$f":"TODAY()","v":45355}]
["Nom","Prénom","Date Nais.","Nat.","Sexe",null,null,"N° Licence","N° Club",null,null,null,null,null,"Certificat","AR","Clas.","Cat.","Mut."]
[null,null,null,null,null,null,null,null,null,null,null,null,null,null,null,null,null,null,null,null,"C"]
[null,null,null,null,null,null,null,null,null,null,null,null,null,null,null,null,null,null,null,null,1]
[null,null,null,null,null,null,null,null,null,null,null,null,null,null,null,null,null,null,null,null,2]
[null,null,null,null,null,null,null,null,null,null,null,null,null,null,null,null,null,null,null,null,3]
[null,null,null,null,null,null,null,null,null,null,null,null,null,null,null,null,null,null,null,null,4]
[null,null,null,null,null,null,null,null,null,null,null,null,null,null,null,null,null,null,null,null,5]
[null,null,null,null,null,null,null,null,null,null,null,null,null,null,null,null,null,null,null,null,6]
[null,null,null,null,null,null,null,null,null,null,null,null,null,null,null,null,null,null,null,null,7]
[null,null,null,null,null,null,null,null,null,null,null,null,null,null,null,null,null,null,null,null,8]
[]
[{"$f":"'Base de données'!B14","v":0}]

{"sheet":"Jury","index":3,"n_rows":37,"n_cols":13,"rows_kept":37,"cut":false,"hidden":false,"merged":[[35,0,35,12],[7,11,7,12],[18,0,18,12],[21,0,21,12],[23,0,23,12],[34,0,34,12],[32,0,32,12],[33,0,33,12],[20,0,20,12],[17,0,17,12],[9,1,9,12],[12,0,14,12],[1,2,1,10],[7,1,7,2],[7,4,7,5],[7,6,7,7],[7,9,7,10],[2,2,2,5],[2,6,2,10]]}
[]
[null,null,"CHAMPIONNAT REGIONAL DES CLUBS"]
[null,null,{"$f":"'Base de données'!B1","v":"Jeu Provençal"},null,null,null,{"$f":"'Dépôt des Licences'!U1","v":2024}]
[]
[]
[]
[]
["DATE :",{"$f":"'Base de données'!B2","v":"00:00:00"},null,null,"HEURE :",null,{"$f":"'Base de données'!B3","v":"00:00:00"},null,null,"DIVISION :",null,{"$f":"'Base de données'!B4","v":0}]
[null,null,null,null,null,null,null,null,null,null,null,"."]
["LIEU :",{"$f":"'Base de données'!B5","v":0}]
[]
[]
["COMPOSITION DU JURY"]
[]
[]
[]
[]
["Président (le Délégué)"]
[{"$f":"CONCATENATE('Base de données'!B16,\" \",'Base de données'!B17)","v":" "}]
[]
["L'Arbitre principal"]
[{"$f":"CONCATENATE('Base de données'!B19,\" \",'Base de données'!B20)","v":" "}]
[]
["Membres (les capitaines des équipes)"]
[null,null,null,{"$f":"'Base de données'!B7","v":0},":",{"$f":"CONCATENATE('Dépôt des Licences'!A3,\" \",'Dépôt des Licences'!B3)","v":" "}]
[null,null,null,{"$f":"'Base de données'!B8","v":0},":",{"$f":"CONCATENATE('Dépôt des Licences'!A25,\" \",'Dépôt des Licences'!B25)","v":" "}]
[null,null,null,{"$f":"'Base de données'!B10","v":0},":",{"$f":"CONCATENATE('Dépôt des Licences'!A47,\" \",'Dépôt des Licences'!B47)","v":" "}]
[null,null,null,{"$f":"'Base de données'!B11","v":0},":",{"$f":"CONCATENATE('Dépôt des Licences'!A69,\" \",'Dépôt des Licences'!B69)","v":" "}]
[null,null,null,{"$f":"'Base de données'!B13","v":0},":",{"$f":"CONCATENATE('Dépôt des Licences'!A91,\" \",'Dépôt des Licences'!B91)","v":" "}]
[null,null,null,{"$f":"'Base de données'!B14","v":0},":",{"$f":"CONCATENATE('Dépôt des Licences'!A113,\" \",'Dépôt des Licences'!B113)","v":" "}]
[]
[null,null,"En cas d'incident joindre un rapport"]
["FFPJP - Comité Régional AURA"]
["Espace Saint Martin"]
["272 Rue des 20 Toises"]
["38950 SAINT MARTIN LE VINOUX"]
[null,null,null,null,null,null,null,null,null,null,null,null,"F. DELAUNÉ 2024"]

{"sheet":"Match 1 recto","index":4,"n_rows":38,"n_cols":17,"rows_kept":38,"cut":false,"hidden":false,"merged":[[36,0,36,16],[12,6,13,7],[12,15,13,16],[17,1,17,7],[17,10,17,16],[22,3,22,5],[23,6,23,7],[23,11,23,14],[18,14,18,16],[34,0,34,16],[33,0,33,16],[19,3,19,7],[19,12,19,16],[21,1,21,16],[24,6,24,7],[35,0,35,16],[2,5,2,11],[5,1,5,16],[10,3,10,16],[14,10,15,16],[8,1,8,2],[8,7,8,9],[14,1,15,7],[10,1,10,2],[8,13,8,14],[8,10,8,11],[18,5,18,7],[8,3,8,5],[8,15,8,16],[24,2,24,5],[27,15,27,16],[25,2,25,5],[24,15,24,16],[25,6,25,7],[24,11,24,14],[25,11,25,14],[25,15,25,16],[30,2,30,5],[30,6,30,7],[30,11,30,14],[30,15,30,16],[28,2,28,5],[28,6,28,7],[29,11,29,14],[29,15,29,16],[1,5,1,14],[3,5,3,14],[28,11,28,14],[28,15,28,16],[29,2,29,5],[29,6,29,7],[27,2,27,5],[27,6,27,7],[27,11,27,14],[22,12,22,14],[23,2,23,5],[26,2,26,5],[26,6,26,7],[26,11,26,14],[26,15,26,16],[23,15,23,16]]}
[]
[null,null,null,null,null,"CHAMPIONNAT REGIONAL DES CLUBS"]
[null,null,null,null,null,{"$f":"'Base de données'!B1","v":"Jeu Provençal"},null,null,null,null,null,null,{"$f":"'Dépôt des Licences'!U1","v":2024}]
[null,null,null,null,null,"      Feuille de match"]
[]
[null,"Valeur des parties : Doublettes = 4 points / Triplettes = 6 points"]
[]
[]
[null,"DATE :",null,{"$f":"'Base de données'!B2","v":"00:00:00"},null,null,null,"HEURE :",null,null,{"$f":"'Base de données'!B3","v":"00:00:00"},null,null,"DIVISION :",null,{"$f":"'Base de données'!B4","v":0}]
[null,null,null,null,null,null,null,null,null,null,null,null,null,null,null,"."]
[null,"LIEU :",null,{"$f":"'Base de données'!B5","v":0}]
[]
[null,"N° du club :",null,null,null,{"$f":"'Dépôt des Licences'!I3","v":0},"A",null,null,null,"N° du club :",null,null,null,{"$f":"'Dépôt des Licences'!I25","v":0},"B"]
[null,"Nom du Club :",null,null,null,null,null,null,null,null,"Nom du Club :"]
[null,{"$f":"'Base de données'!B7","v":0},null,null,null,null,null,null,null,null,{"$f":"'Base de données'!B8","v":0}]
[]
[]
[null,"CAPITAINE club A :",null,null,null,null,null,null,null,null,"CAPITAINE club B :"]
[null,"Licence N°",null,null,null,{"$f":"'Dépôt des Licences'!H3","v":0},null,null,null,null,"Licence N°",null,null,null,{"$f":"'Dépôt des Licences'!H25","v":0}]
[null,"Nom",null,{"$f":"CONCATENATE('Dépôt des Licences'!A3,\" \",'Dépôt des Licences'!B3)","v":" "},null,null,null,null,null,null,"Nom",null,{"$f":"CONCATENATE('Dépôt des Licences'!A25,\" \",'Dépôt des Licences'!B25)","v":" "}]
[]
[null,"Composition des Equipes"]
[null,null,null,"Nom - Prenom",null,null,"N° Licence",null,null,null,null,null,"Nom - Prenom",null,null,"N° Licence"]
[null,1,{"$f":"CONCATENATE('Dépôt des Licences'!A4,\" \",'Dépôt des Licences'!B4)","v":" "},null,null,null,{"$f":"'Dépôt des Licences'!H4","v":0},null,null,null,1,{"$f":"CONCATENATE('Dépôt des Licences'!A26,\" \",'Dépôt des Licences'!B26)","v":" "},null,null,null,{"$f":"'Dépôt des Licences'!H26","v":0}]
[null,2,{"$f":"CONCATENATE('Dépôt des Licences'!A5,\" \",'Dépôt des Licences'!B5)","v":" "},null,null,null,{"$f":"'Dépôt des Licences'!H5","v":0},null,null,null,2,{"$f":"CONCATENATE('Dépôt des Licences'!A27,\" \",'Dépôt des Licences'!B27)","v":" "},null,null,null,{"$f":"'Dépôt des Licences'!H27","v":0}]
[null,3,{"$f":"CONCATENATE('Dépôt des Licences'!A6,\" \",'Dépôt des Licences'!B6)","v":" "},null,null,null,{"$f":"'Dépôt des Licences'!H6","v":0},null,null,null,3,{"$f":"CONCATENATE('Dépôt des Licences'!A28,\" \",'Dépôt des Licences'!B28)","v":" "},null,null,null,{"$f":"'Dépôt des Licences'!H28","v":0}]
[null,4,{"$f":"CONCATENATE('Dépôt des Licences'!A7,\" \",'Dépôt des Licences'!B7)","v":" "},null,null,null,{"$f":"'Dépôt des Licences'!H7","v":0},null,null,null,4,{"$f":"CONCATENATE('Dépôt des Licences'!A29,\" \",'Dépôt des Licences'!B29)","v":" "},null,null,null,{"$f":"'Dépôt des Licences'!H29","v":0}]
[null,5,{"$f":"CONCATENATE('Dépôt des Licences'!A8,\" \",'Dépôt des Licences'!B8)","v":" "},null,null,null,{"$f":"'Dépôt des Licences'!H8","v":0},null,null,null,5,{"$f":"CONCATENATE('Dépôt des Licences'!A30,\" \",'Dépôt des Licences'!B30)","v":" "},null,null,null,{"$f":"'Dépôt des Licences'!H30","v":0}]
[null,6,{"$f":"CONCATENATE('Dépôt des Licences'!A9,\" \",'Dépôt des Licences'!B9)","v":" "},null,null,null,{"$f":"'Dépôt des Licences'!H9","v":0},null,null,null,6,{"$f":"CONCATENATE('Dépôt des Licences'!A31,\" \",'Dépôt des Licences'!B31)","v":" "},null,null,null,{"$f":"'Dépôt des Licences'!H31","v":0}]
[null,7,{"$f":"CONCATENATE('Dépôt des Licences'!A10,\" \",'Dépôt des Licences'!B10)","v":" "},null,null,null,{"$f":"'Dépôt des Licences'!H10","v":0},null,null,null,7,{"$f":"CONCATENATE('Dépôt des Licences'!A32,\" \",'Dépôt des Licences'!B32)","v":" "},null,null,null,{"$f":"'Dépôt des Licences'!H32","v":0}]
[null,8,{"$f":"CONCATENATE('Dépôt des Licences'!A11,\" \",'Dépôt des Licences'!B11)","v":" "},null,null,null,{"$f":"'Dépôt des Licences'!H11","v":0},null,null,null,8,{"$f":"CONCATENATE('Dépôt des Licences'!A33,\" \",'Dépôt des Licences'!B33)","v":" "},null,null,null,{"$f":"'Dépôt des Licences'!H33","v":0}]
[]
[null,null,null,null,null,"En cas d'incident joindre un rapport"]
["FFPJP - Comité Régional AURA"]
["Espace Saint Martin"]
["272 Rue des 20 Toises"]
["38950 SAINT MARTIN LE VINOUX"]
[null,null,null,null,null,null,null,null,null,null,null,null,null,null,null,null,"F. DELAUNÉ 2024"]

{"sheet":"Match 1 verso","index":5,"n_rows":41,"n_cols":24,"rows_kept":41,"cut":false,"hidden":false,"merged":[[40,0,40,18],[34,0,34,6],[34,9,34,12],[34,14,34,18],[37,14,37,18],[27,2,27,7],[27,12,27,17],[29,7,29,8],[29,17,29,18],[33,0,33,6],[33,9,33,12],[33,14,33,18],[17,0,27,0],[17,2,19,2],[20,2,22,2],[17,1,19,1],[20,1,22,1],[37,7,37,13],[38,7,38,13],[37,0,37,6],[38,0,38,6],[17,11,19,11],[20,11,22,11],[38,14,38,18],[17,18,19,18],[18,4,18,6],[18,14,18,16],[19,4,19,6],[19,14,19,16],[17,4,17,6],[17,7,19,7],[17,8,19,8],[17,10,27,10],[20,4,20,6],[20,7,22,7],[20,8,22,8],[25,6,25,8],[25,16,25,18],[26,6,26,8],[26,16,26,18],[23,6,23,8],[23,16,23,18],[24,6,24,8],[24,16,24,18],[20,18,22,18],[15,1,16,1],[15,2,15,7],[15,11,16,11],[15,12,15,17],[16,4,16,6],[16,14,16,16],[20,12,22,12],[20,14,20,16],[20,17,22,17],[22,14,22,16],[17,12,19,12],[17,14,17,16],[17,17,19,17],[21,4,21,6],[21,14,21,16],[22,4,22,6],[5,12,6,12],[5,14,5,16],[3,10,13,10],[3,11,4,11],[3,12,4,12],[3,14,3,16],[10,6,10,8],[10,16,10,18],[11,6,11,8],[11,16,11,18],[8,4,8,6],[8,14,8,16],[9,6,9,8],[9,16,9,18],[6,4,6,6],[6,14,6,16],[5,17,6,17],[3,17,4,17],[5,18,6,18],[7,17,8,17],[7,18,8,18],[7,11,8,11],[7,12,8,12],[7,14,7,16],[3,0,13,0],[3,1,4,1],[3,2,4,2],[3,4,3,6],[3,7,4,7],[3,8,4,8],[4,4,4,6],[5,1,6,1],[5,2,6,2],[5,4,5,6],[7,1,8,1],[7,2,8,2],[7,4,7,6],[7,7,8,7],[7,8,8,8],[12,6,12,8],[12,16,12,18],[13,2,13,7],[13,12,13,17],[5,7,6,7],[5,8,6,8],[5,11,6,11],[0,0,0,18],[1,1,2,1],[1,2,1,7],[1,11,2,11],[1,12,1,17],[2,4,2,6],[2,14,2,16],[3,18,4,18],[4,14,4,16]]}
["Ordre des Rencontres et Feuille de Résultats"]
[null,"Terrain",{"$f":"'Match 1 recto'!B15","v":0},null,null,null,null,null,"A",null,null,"Terrain",{"$f":"'Match 1 recto'!K15","v":0},null,null,null,null,null,"B"]
[null,null,null,"N°","Nom -Prénom",null,null,"Score","Pts",null,null,null,null,"N°","Nom -Prénom",null,null,"Score","Pts",null,null,{"$f":"C2","v":0},{"$f":"M2","v":0}]
["DOUBLETTE",null,1,null,{"$f":"IF(D4<>\"\",VLOOKUP(D4,$U$4:$W$11,2),\"\")","v":""},null,null,null,{"$f":"IF(H4=\"\",\"\",IF(H4=11,4,IF(H4>R4,4,IF(H4=R4,2,0))))","v":""},null,"DOUBLETTE",{"$f":"IF(B4=\"\",\"\",B4)","v":""},1,null,{"$f":"IF(N4<>\"\",VLOOKUP(N4,$U$4:$W$11,3),\"\")","v":""},null,null,null,{"$f":"IF(R4=\"\",\"\",IF(R4=11,4,IF(R4>H4,4,IF(R4=H4,2,0))))","v":""},null,1,{"$f":"  'Dépôt des Licences'!A4 &\" \" & 'Dépôt des Licences'!B4","v":" "},{"$f":"  'Dépôt des Licences'!A26 &\" \" & 'Dépôt des Licences'!B26","v":" "},1]
[null,null,null,null,{"$f":"IF(D5<>\"\",VLOOKUP(D5,$U$4:$W$11,2),\"\")","v":""},null,null,null,null,null,null,null,null,null,{"$f":"IF(N5<>\"\",VLOOKUP(N5,$U$4:$W$11,3),\"\")","v":""},null,null,null,null,null,2,{"$f":"  'Dépôt des Licences'!A5 &\" \" & 'Dépôt des Licences'!B5","v":" "},{"$f":"  'Dépôt des Licences'!A27 &\" \" & 'Dépôt des Licences'!B27","v":" "},2]
[null,null,2,null,"",null,null,null,{"$f":"IF(H6=\"\",\"\",IF(H6=11,4,IF(H6>R6,4,IF(H6=R6,2,0))))","v":""},null,null,{"$f":"IF(B6=\"\",\"\",B6)","v":""},2,null,"",null,null,null,{"$f":"IF(R6=\"\",\"\",IF(R6=11,4,IF(R6>H6,4,IF(R6=H6,2,0))))","v":""},null,3,{"$f":"  'Dépôt des Licences'!A6 &\" \" & 'Dépôt des Licences'!B6","v":" "},{"$f":"  'Dépôt des Licences'!A28 &\" \" & 'Dépôt des Licences'!B28","v":" "},3]
[null,null,null,null,"",null,null,null,null,null,null,null,null,null,"",null,null,null,null,null,4,{"$f":"  'Dépôt des Licences'!A7 &\" \" & 'Dépôt des Licences'!B7","v":" "},{"$f":"  'Dépôt des Licences'!A29 &\" \" & 'Dépôt des Licences'!B29","v":" "},4]
[null,null,3,null,"",null,null,null,{"$f":"IF(H8=\"\",\"\",IF(H8=11,4,IF(H8>R8,4,IF(H8=R8,2,0))))","v":""},null,null,{"$f":"IF(B8=\"\",\"\",B8)","v":""},3,null,"",null,null,null,{"$f":"IF(R8=\"\",\"\",IF(R8=11,4,IF(R8>H8,4,IF(R8=H8,2,0))))","v":""},null,5,{"$f":"  'Dépôt des Licences'!A8 &\" \" & 'Dépôt des Licences'!B8","v":" "},{"$f":"  'Dépôt des Licences'!A30 &\" \" & 'Dépôt des Licences'!B30","v":" "},5]
[null,null,null,null,{"$f":"IF(D9<>\"\",VLOOKUP(D9,$U$4:$W$11,2),\"\")","v":""},null,null,null,null,null,null,null,null,null,"",null,null,null,null,null,6,{"$f":"  'Dépôt des Licences'!A9 &\" \" & 'Dépôt des Licences'!B9","v":" "},{"$f":"  'Dépôt des Licences'!A31 &\" \" & 'Dépôt des Licences'!B31","v":" "},6]
[null,"Joueur Remplacé N°1",null,null,null,null,{"$f":"IF(F10<>\"\",VLOOKUP(F10,$U$4:$W$11,2),\"\")","v":""},null,null,null,null,"Joueur Remplacé N°1",null,null,null,null,{"$f":"IF(P10<>\"\",VLOOKUP(P10,$U$4:$W$11,3),\"\")","v":""},null,null,null,7,{"$f":"  'Dépôt des Licences'!A10 &\" \" & 'Dépôt des Licences'!B10","v":" "},{"$f":"  'Dépôt des Licences'!A32 &\" \" & 'Dépôt des Licences'!B32","v":" "},7]
[null,"Joueur Remplaçant N°1",null,null,null,null,{"$f":"IF(F11<>\"\",VLOOKUP(F11,$U$4:$W$11,2),\"\")","v":""},null,null,null,null,"Joueur Remplaçant N°1",null,null,null,null,{"$f":"IF(P11<>\"\",VLOOKUP(P11,$U$4:$W$11,3),\"\")","v":""},null,null,null,8,{"$f":"  'Dépôt des Licences'!A11 &\" \" & 'Dépôt des Licences'!B11","v":" "},{"$f":"  'Dépôt des Licences'!A33 &\" \" & 'Dépôt des Licences'!B33","v":" "},8]
[null,"Joueur Remplacé N°2",null,null,null,null,"",null,null,null,null,"Joueur Remplacé N°2",null,null,null,null,""]
[null,"Joueur Remplaçant N°2",null,null,null,null,"",null,null,null,null,"Joueur Remplaçant N°2",null,null,null,null,""]
[null,null,"S/TOTAL Pts Doublette ",null,null,null,null,null,{"$f":"SUM(I4:I9)","v":0},{"$f":"I14+S14","v":0},null,null,"S/TOTAL Pts Doublette ",null,null,null,null,null,{"$f":"SUM(S4:S9)","v":0}]
[null,null,null,null,null,null,null,null,{"$f":"I14/4","v":0},null,null,null,null,null,null,null,null,null,{"$f":"S14/4","v":0}]
[null,"Terrain",{"$f":"'Match 1 recto'!B15","v":0},null,null,null,null,null,"A",null,null,"Terrain",{"$f":"'Match 1 recto'!K15","v":0},null,null,null,null,null,"B"]
[null,null,null,"N°","Nom -Prénom",null,null,"Score","Pts",null,null,null,null,"N°","Nom -Prénom",null,null,"Score","Pts",null,null,{"$f":"C2","v":0},{"$f":"M2","v":0}]
["TRIPLETTE",null,1,null,{"$f":"IF(D18<>\"\",VLOOKUP(D18,$U$18:$W$25,2),\"\")","v":""},null,null,null,{"$f":"IF(H18=\"\",\"\",IF(H18=11,6,IF(H18>R18,6,IF(H18=R18,3,0))))","v":""},null,"TRIPLETTE",{"$f":"IF(B18=\"\",\"\",B18)","v":""},1,null,{"$f":"IF(N18<>\"\",VLOOKUP(N18,$U$18:$W$25,3),\"\")","v":""},null,null,null,{"$f":"IF(R18=\"\",\"\",IF(R18=11,6,IF(R18>H18,6,IF(R18=H18,3,0))))","v":""},null,1,{"$f":"  'Dépôt des Licences'!A4 &\" \" & 'Dépôt des Licences'!B4","v":" "},{"$f":"  'Dépôt des Licences'!A26 &\" \" & 'Dépôt des Licences'!B26","v":" "},1]
[null,null,null,null,{"$f":"IF(D19<>\"\",VLOOKUP(D19,$U$18:$W$25,2),\"\")","v":""},null,null,null,null,null,null,null,null,null,{"$f":"IF(N19<>\"\",VLOOKUP(N19,$U$18:$W$25,3),\"\")","v":""},null,null,null,null,null,2,{"$f":"  'Dépôt des Licences'!A5 &\" \" & 'Dépôt des Licences'!B5","v":" "},{"$f":"  'Dépôt des Licences'!A27 &\" \" & 'Dépôt des Licences'!B27","v":" "},2]
[null,null,null,null,"",null,null,null,null,null,null,null,null,null,"",null,null,null,null,null,3,{"$f":"  'Dépôt des Licences'!A6 &\" \" & 'Dépôt des Licences'!B6","v":" "},{"$f":"  'Dépôt des Licences'!A28 &\" \" & 'Dépôt des Licences'!B28","v":" "},3]
[null,null,2,null,"",null,null,null,{"$f":"IF(H21=\"\",\"\",IF(H21=11,6,IF(H21>R21,6,IF(H21=R21,3,0))))","v":""},null,null,{"$f":"IF(B21=\"\",\"\",B21)","v":""},2,null,"",null,null,null,{"$f":"IF(R21=\"\",\"\",IF(R21=11,6,IF(R21>H21,6,IF(R21=H21,3,0))))","v":""},null,4,{"$f":"  'Dépôt des Licences'!A7 &\" \" & 'Dépôt des Licences'!B7","v":" "},{"$f":"  'Dépôt des Licences'!A29 &\" \" & 'Dépôt des Licences'!B29","v":" "},4]
[null,null,null,null,{"$f":"IF(D22<>\"\",VLOOKUP(D22,$U$18:$W$25,2),\"\")","v":""},null,null,null,null,null,null,null,null,null,"",null,null,null,null,null,5,{"$f":"  'Dépôt des Licences'!A8 &\" \" & 'Dépôt des Licences'!B8","v":" "},{"$f":"  'Dépôt des Licences'!A30 &\" \" & 'Dépôt des Licences'!B30","v":" "},5]
[null,null,null,null,"",null,null,null,null,null,null,null,null,null,"",null,null,null,null,null,6,{"$f":"  'Dépôt des Licences'!A9 &\" \" & 'Dépôt des Licences'!B9","v":" "},{"$f":"  'Dépôt des Licences'!A31 &\" \" & 'Dépôt des Licences'!B31","v":" "},6]
[null,"Joueur Remplacé N°1",null,null,null,null,{"$f":"IF(F24<>\"\",VLOOKUP(F24,$U$18:$W$25,2),\"\")","v":""},null,null,null,null,"Joueur Remplacé N°1",null,null,null,null,{"$f":"IF(P24<>\"\",VLOOKUP(P24,$U$18:$W$25,3),\"\")","v":""},null,null,null,7,{"$f":"  'Dépôt des Licences'!A10 &\" \" & 'Dépôt des Licences'!B10","v":" "},{"$f":"  'Dépôt des Licences'!A32 &\" \" & 'Dépôt des Licences'!B32","v":" "},7]
[null,"Joueur Remplaçant N°1",null,null,null,null,{"$f":"IF(F25<>\"\",VLOOKUP(F25,$U$18:$W$25,2),\"\")","v":""},null,null,null,null,"Joueur Remplaçant N°1",null,null,null,null,{"$f":"IF(P25<>\"\",VLOOKUP(P25,$U$18:$W$25,3),\"\")","v":""},null,null,null,8,{"$f":"  'Dépôt des Licences'!A11 &\" \" & 'Dépôt des Licences'!B11","v":" "},{"$f":"  'Dépôt des Licences'!A33 &\" \" & 'Dépôt des Licences'!B33","v":" "},8]
[null,"Joueur Remplacé N°2",null,null,null,null,{"$f":"IF(F26<>\"\",VLOOKUP(F26,$U$18:$W$25,2),\"\")","v":""},null,null,null,null,"Joueur Remplacé N°2",null,null,null,null,""]
[null,"Joueur Remplaçant N°2",null,null,null,null,"",null,null,null,null,"Joueur Remplaçant N°2",null,null,null,null,""]
[null,null,"S/TOTAL Pts Triplette ",null,null,null,null,null,{"$f":"SUM(I18:I23)","v":0},{"$f":"I28+S28","v":0},null,null,"S/TOTAL Pts Triplette ",null,null,null,null,null,{"$f":"SUM(S18:S23)","v":0}]
[null,null,null,null,null,null,null,null,{"$f":"I28/6","v":0},{"$f":"I15+I29","v":0},{"$f":"S15+S29","v":0},null,null,null,null,null,null,null,{"$f":"S28/6","v":0}]
[null,null,"Total général équipe  A",null,null,null,"Pts",{"$f":"I14+I28","v":0},null,{"$f":"H30+R30","v":0},null,null,"Total général équipe  B",null,null,null,"Pts",{"$f":"S14+S28","v":0}]
[]
[null,null,null,null,null,null,null,"Nombre de parties Gagnées : ",{"$f":"I15+I29","v":0},{"$f":"I32+S32","v":0},null,null,null,null,null,null,null,"Nombre de parties Gagnées : ",{"$f":"S15+S29","v":0}]
[]
["Equipe gagnante :",null,null,null,null,null,null,{"$f":"IF(H30=R30,\"\",IF(H30>R30,\"A\",\"B\"))","v":""},null,"du club de :",null,null,null,null,{"$f":"IF(H34=\"\",\"\",IF(H34=\"A\",C2,M2))","v":""}]
["Equipe perdante :",null,null,null,null,null,null,{"$f":"IF(H30=R30,\"\",IF(H30<R30,\"A\",\"B\"))","v":""},null,"du club de :",null,null,null,null,{"$f":"IF(H30=R30,\"\",IF(H30<R30,C2,M2))","v":""}]
[null,null,null,null,null,null,null,null,null,"Match nul entre A et B :",null,null,{"$f":"IF(H30=\"\",\"\",IF(H30=R30,\"X\",\"\"))","v":"X"}]
[]
["Signat. capitaine Equipe A",null,null,null,null,null,null,"Nom-Prénom & signature de l'Arbitre ",null,null,null,null,null,null,"Signat. Capitaine Equipe B"]
[{"$f":"CONCATENATE('Dépôt des Licences'!A3,\" \",'Dépôt des Licences'!B3)","v":" "},null,null,null,null,null,null,{"$f":"CONCATENATE('Base de données'!B19,\" \",'Base de données'!B20)","v":" "},null,null,null,null,null,null,{"$f":"CONCATENATE('Dépôt des Licences'!A25,\" \",'Dépôt des Licences'!B25)","v":" "}]
[null,null,null,null,null,null,null,null,null,null,null,null,null,null,null,null,null,null,"F. DELAUNÉ 2024"]
["Dans le cas d'une saisie informatique, on informe uniquement les cellules grisées et l'on fait signer"]

{"sheet":"Match 2 recto","index":6,"n_rows":38,"n_cols":17,"rows_kept":38,"cut":false,"hidden":false,"merged":[[35,0,35,16],[36,0,36,16],[30,2,30,5],[30,6,30,7],[30,11,30,14],[30,15,30,16],[33,0,33,16],[34,0,34,16],[28,2,28,5],[28,6,28,7],[28,11,28,14],[28,15,28,16],[29,2,29,5],[29,6,29,7],[29,11,29,14],[29,15,29,16],[26,2,26,5],[26,6,26,7],[26,11,26,14],[26,15,26,16],[27,2,27,5],[27,6,27,7],[27,11,27,14],[27,15,27,16],[24,2,24,5],[24,6,24,7],[24,11,24,14],[24,15,24,16],[25,2,25,5],[25,6,25,7],[25,11,25,14],[25,15,25,16],[21,1,21,16],[22,3,22,5],[22,12,22,14],[23,2,23,5],[23,6,23,7],[23,11,23,14],[23,15,23,16],[17,1,17,7],[17,10,17,16],[18,5,18,7],[18,14,18,16],[19,3,19,7],[19,12,19,16],[10,1,10,2],[10,3,10,16],[12,6,13,7],[12,15,13,16],[14,1,15,7],[14,10,15,16],[1,5,1,14],[2,5,2,11],[3,5,3,14],[5,1,5,16],[8,1,8,2],[8,3,8,5],[8,7,8,9],[8,10,8,11],[8,13,8,14],[8,15,8,16]]}
[]
[null,null,null,null,null,"CHAMPIONNAT REGIONAL DES CLUBS"]
[null,null,null,null,null,{"$f":"'Base de données'!B1","v":"Jeu Provençal"},null,null,null,null,null,null,{"$f":"'Dépôt des Licences'!U1","v":2024}]
[null,null,null,null,null,"      Feuille de match"]
[]
[null,"Valeur des parties : Doublettes = 4 points / Triplettes = 6 points"]
[]
[]
[null,"DATE :",null,{"$f":"'Base de données'!B2","v":"00:00:00"},null,null,null,"HEURE :",null,null,{"$f":"'Base de données'!B3","v":"00:00:00"},null,null,"DIVISION :",null,{"$f":"'Base de données'!B4","v":0}]
[null,null,null,null,null,null,null,null,null,null,null,null,null,null,null,"."]
[null,"LIEU :",null,{"$f":"'Base de données'!B5","v":0}]
[]
[null,"N° du club :",null,null,null,{"$f":"'Dépôt des Licences'!I47","v":0},"A",null,null,null,"N° du club :",null,null,null,{"$f":"'Dépôt des Licences'!I69","v":0},"B"]
[null,"Nom du Club :",null,null,null,null,null,null,null,null,"Nom du Club :"]
[null,{"$f":"'Base de données'!B10","v":0},null,null,null,null,null,null,null,null,{"$f":"'Base de données'!B11","v":0}]
[]
[]
[null,"CAPITAINE club A :",null,null,null,null,null,null,null,null,"CAPITAINE club B :"]
[null,"Licence N°",null,null,null,{"$f":"'Dépôt des Licences'!H47","v":0},null,null,null,null,"Licence N°",null,null,null,{"$f":"'Dépôt des Licences'!H69","v":0}]
[null,"Nom",null,{"$f":"CONCATENATE('Dépôt des Licences'!A47,\" \",'Dépôt des Licences'!B47)","v":" "},null,null,null,null,null,null,"Nom",null,{"$f":"CONCATENATE('Dépôt des Licences'!A69,\" \",'Dépôt des Licences'!B69)","v":" "}]
[]
[null,"Composition des Equipes"]
[null,null,null,"Nom - Prenom",null,null,"N° Licence",null,null,null,null,null,"Nom - Prenom",null,null,"N° Licence"]
[null,1,{"$f":"CONCATENATE('Dépôt des Licences'!A48,\" \",'Dépôt des Licences'!B48)","v":" "},null,null,null,{"$f":"'Dépôt des Licences'!H48","v":0},null,null,null,1,{"$f":"CONCATENATE('Dépôt des Licences'!A70,\" \",'Dépôt des Licences'!B70)","v":" "},null,null,null,{"$f":"'Dépôt des Licences'!H70","v":0}]
[null,2,{"$f":"CONCATENATE('Dépôt des Licences'!A49,\" \",'Dépôt des Licences'!B49)","v":" "},null,null,null,{"$f":"'Dépôt des Licences'!H49","v":0},null,null,null,2,{"$f":"CONCATENATE('Dépôt des Licences'!A71,\" \",'Dépôt des Licences'!B71)","v":" "},null,null,null,{"$f":"'Dépôt des Licences'!H71","v":0}]
[null,3,{"$f":"CONCATENATE('Dépôt des Licences'!A50,\" \",'Dépôt des Licences'!B50)","v":" "},null,null,null,{"$f":"'Dépôt des Licences'!H50","v":0},null,null,null,3,{"$f":"CONCATENATE('Dépôt des Licences'!A72,\" \",'Dépôt des Licences'!B72)","v":" "},null,null,null,{"$f":"'Dépôt des Licences'!H72","v":0}]
[null,4,{"$f":"CONCATENATE('Dépôt des Licences'!A51,\" \",'Dépôt des Licences'!B51)","v":" "},null,null,null,{"$f":"'Dépôt des Licences'!H51","v":0},null,null,null,4,{"$f":"CONCATENATE('Dépôt des Licences'!A73,\" \",'Dépôt des Licences'!B73)","v":" "},null,null,null,{"$f":"'Dépôt des Licences'!H73","v":0}]
[null,5,{"$f":"CONCATENATE('Dépôt des Licences'!A52,\" \",'Dépôt des Licences'!B52)","v":" "},null,null,null,{"$f":"'Dépôt des Licences'!H52","v":0},null,null,null,5,{"$f":"CONCATENATE('Dépôt des Licences'!A74,\" \",'Dépôt des Licences'!B74)","v":" "},null,null,null,{"$f":"'Dépôt des Licences'!H74","v":0}]
[null,6,{"$f":"CONCATENATE('Dépôt des Licences'!A53,\" \",'Dépôt des Licences'!B53)","v":" "},null,null,null,{"$f":"'Dépôt des Licences'!H53","v":0},null,null,null,6,{"$f":"CONCATENATE('Dépôt des Licences'!A75,\" \",'Dépôt des Licences'!B75)","v":" "},null,null,null,{"$f":"'Dépôt des Licences'!H75","v":0}]
[null,7,{"$f":"CONCATENATE('Dépôt des Licences'!A54,\" \",'Dépôt des Licences'!B54)","v":" "},null,null,null,{"$f":"'Dépôt des Licences'!H54","v":0},null,null,null,7,{"$f":"CONCATENATE('Dépôt des Licences'!A76,\" \",'Dépôt des Licences'!B76)","v":" "},null,null,null,{"$f":"'Dépôt des Licences'!H76","v":0}]
[null,8,{"$f":"CONCATENATE('Dépôt des Licences'!A55,\" \",'Dépôt des Licences'!B55)","v":" "},null,null,null,{"$f":"'Dépôt des Licences'!H55","v":0},null,null,null,8,{"$f":"CONCATENATE('Dépôt des Licences'!A77,\" \",'Dépôt des Licences'!B77)","v":" "},null,null,null,{"$f":"'Dépôt des Licences'!H77","v":0}]
[]
[null,null,null,null,null,"En cas d'incident joindre un rapport"]
["FFPJP - Comité Régional AURA"]
["Espace Saint Martin"]
["272 Rue des 20 Toises"]
["38950 SAINT MARTIN LE VINOUX"]
[null,null,null,null,null,null,null,null,null,null,null,null,null,null,null,null,"F. DELAUNÉ 2024"]

{"sheet":"Match 2 verso","index":7,"n_rows":41,"n_cols":24,"rows_kept":41,"cut":false,"hidden":false,"merged":[[0,0,0,18],[7,4,7,6],[1,1,2,1],[1,2,1,7],[1,11,2,11],[1,12,1,17],[2,4,2,6],[2,14,2,16],[5,11,6,11],[5,12,6,12],[5,14,5,16],[5,18,6,18],[7,17,8,17],[7,18,8,18],[3,0,13,0],[3,1,4,1],[3,2,4,2],[3,4,3,6],[3,7,4,7],[3,8,4,8],[4,4,4,6],[5,1,6,1],[5,2,6,2],[5,4,5,6],[7,1,8,1],[7,2,8,2],[15,11,16,11],[15,12,15,17],[16,4,16,6],[16,14,16,16],[11,6,11,8],[11,16,11,18],[12,6,12,8],[12,16,12,18],[13,2,13,7],[13,12,13,17],[3,10,13,10],[3,11,4,11],[6,4,6,6],[6,14,6,16],[3,12,4,12],[3,14,3,16],[3,17,4,17],[7,7,8,7],[7,8,8,8],[7,11,8,11],[7,12,8,12],[7,14,7,16],[3,18,4,18],[4,14,4,16],[17,4,17,6],[17,7,19,7],[17,8,19,8],[18,4,18,6],[19,4,19,6],[20,2,22,2],[20,4,20,6],[20,18,22,18],[17,2,19,2],[8,4,8,6],[8,14,8,16],[9,6,9,8],[9,16,9,18],[10,6,10,8],[10,16,10,18],[5,17,6,17],[5,7,6,7],[5,8,6,8],[15,1,16,1],[15,2,15,7],[29,17,29,18],[23,6,23,8],[23,16,23,18],[24,6,24,8],[24,16,24,18],[25,6,25,8],[25,16,25,18],[22,4,22,6],[22,14,22,16],[17,10,27,10],[17,11,19,11],[17,12,19,12],[17,14,17,16],[26,6,26,8],[26,16,26,18],[27,2,27,7],[27,12,27,17],[17,17,19,17],[17,18,19,18],[18,14,18,16],[19,14,19,16],[20,17,22,17],[40,0,40,18],[17,0,27,0],[17,1,19,1],[20,1,22,1],[33,0,33,6],[33,9,33,12],[33,14,33,18],[34,0,34,6],[34,9,34,12],[34,14,34,18],[37,0,37,6],[37,7,37,13],[37,14,37,18],[38,0,38,6],[38,7,38,13],[38,14,38,18],[20,7,22,7],[20,8,22,8],[20,11,22,11],[20,12,22,12],[20,14,20,16],[21,4,21,6],[21,14,21,16],[29,7,29,8]]}
["Ordre des Rencontres et Feuille de Résultats"]
[null,"Terrain",{"$f":"'Match 2 recto'!B15","v":0},null,null,null,null,null,"A",null,null,"Terrain",{"$f":"'Match 2 recto'!K15","v":0},null,null,null,null,null,"B"]
[null,null,null,"N°","Nom -Prénom",null,null,"Score","Pts",null,null,null,null,"N°","Nom -Prénom",null,null,"Score","Pts",null,null,{"$f":"C2","v":0},{"$f":"M112","v":0}]
["DOUBLETTE",null,1,null,{"$f":"IF(D4<>\"\",VLOOKUP(D4,$U$4:$W$11,2),\"\")","v":""},null,null,null,{"$f":"IF(H4=\"\",\"\",IF(H4=11,4,IF(H4>R4,4,IF(H4=R4,2,0))))","v":""},null,"DOUBLETTE",{"$f":"IF(B4=\"\",\"\",B4)","v":""},1,null,{"$f":"IF(N4<>\"\",VLOOKUP(N4,$U$4:$W$11,3),\"\")","v":""},null,null,null,{"$f":"IF(R4=\"\",\"\",IF(R4=11,4,IF(R4>H4,4,IF(R4=H4,2,0))))","v":""},null,1,{"$f":"  'Dépôt des Licences'!A48 &\" \" & 'Dépôt des Licences'!B48","v":" "},{"$f":"  'Dépôt des Licences'!A70 &\" \" & 'Dépôt des Licences'!B70","v":" "},1]
[null,null,null,null,{"$f":"IF(D5<>\"\",VLOOKUP(D5,$U$4:$W$11,2),\"\")","v":""},null,null,null,null,null,null,null,null,null,{"$f":"IF(N5<>\"\",VLOOKUP(N5,$U$4:$W$11,3),\"\")","v":""},null,null,null,null,null,2,{"$f":"  'Dépôt des Licences'!A49 &\" \" & 'Dépôt des Licences'!B49","v":" "},{"$f":"  'Dépôt des Licences'!A71 &\" \" & 'Dépôt des Licences'!B71","v":" "},2]
[null,null,2,null,"",null,null,null,{"$f":"IF(H6=\"\",\"\",IF(H6=11,4,IF(H6>R6,4,IF(H6=R6,2,0))))","v":""},null,null,{"$f":"IF(B6=\"\",\"\",B6)","v":""},2,null,"",null,null,null,{"$f":"IF(R6=\"\",\"\",IF(R6=11,4,IF(R6>H6,4,IF(R6=H6,2,0))))","v":""},null,3,{"$f":"  'Dépôt des Licences'!A50 &\" \" & 'Dépôt des Licences'!B50","v":" "},{"$f":"  'Dépôt des Licences'!A72 &\" \" & 'Dépôt des Licences'!B72","v":" "},3]
[null,null,null,null,"",null,null,null,null,null,null,null,null,null,"",null,null,null,null,null,4,{"$f":"  'Dépôt des Licences'!A51 &\" \" & 'Dépôt des Licences'!B51","v":" "},{"$f":"  'Dépôt des Licences'!A73 &\" \" & 'Dépôt des Licences'!B73","v":" "},4]
[null,null,3,null,"",null,null,null,{"$f":"IF(H8=\"\",\"\",IF(H8=11,4,IF(H8>R8,4,IF(H8=R8,2,0))))","v":""},null,null,{"$f":"IF(B8=\"\",\"\",B8)","v":""},3,null,"",null,null,null,{"$f":"IF(R8=\"\",\"\",IF(R8=11,4,IF(R8>H8,4,IF(R8=H8,2,0))))","v":""},null,5,{"$f":"  'Dépôt des Licences'!A52 &\" \" & 'Dépôt des Licences'!B52","v":" "},{"$f":"  'Dépôt des Licences'!A74 &\" \" & 'Dépôt des Licences'!B74","v":" "},5]
[null,null,null,null,{"$f":"IF(D9<>\"\",VLOOKUP(D9,$U$4:$W$11,2),\"\")","v":""},null,null,null,null,null,null,null,null,null,"",null,null,null,null,null,6,{"$f":"  'Dépôt des Licences'!A53 &\" \" & 'Dépôt des Licences'!B53","v":" "},{"$f":"  'Dépôt des Licences'!A75 &\" \" & 'Dépôt des Licences'!B75","v":" "},6]
[null,"Joueur Remplacé N°1",null,null,null,null,{"$f":"IF(F10<>\"\",VLOOKUP(F10,$U$4:$W$11,2),\"\")","v":""},null,null,null,null,"Joueur Remplacé N°1",null,null,null,null,{"$f":"IF(P10<>\"\",VLOOKUP(P10,$U$4:$W$11,3),\"\")","v":""},null,null,null,7,{"$f":"  'Dépôt des Licences'!A54 &\" \" & 'Dépôt des Licences'!B54","v":" "},{"$f":"  'Dépôt des Licences'!A76 &\" \" & 'Dépôt des Licences'!B76","v":" "},7]
[null,"Joueur Remplaçant N°1",null,null,null,null,{"$f":"IF(F11<>\"\",VLOOKUP(F11,$U$4:$W$11,2),\"\")","v":""},null,null,null,null,"Joueur Remplaçant N°1",null,null,null,null,{"$f":"IF(P11<>\"\",VLOOKUP(P11,$U$4:$W$11,3),\"\")","v":""},null,null,null,8,{"$f":"  'Dépôt des Licences'!A55 &\" \" & 'Dépôt des Licences'!B55","v":" "},{"$f":"  'Dépôt des Licences'!A77 &\" \" & 'Dépôt des Licences'!B77","v":" "},8]
[null,"Joueur Remplacé N°2",null,null,null,null,"",null,null,null,null,"Joueur Remplacé N°2",null,null,null,null,{"$f":"IF(P12<>\"\",VLOOKUP(P12,$U$4:$W$11,3),\"\")","v":""}]
[null,"Joueur Remplaçant N°2",null,null,null,null,"",null,null,null,null,"Joueur Remplaçant N°2",null,null,null,null,""]
[null,null,"S/TOTAL Pts Doublette ",null,null,null,null,null,{"$f":"SUM(I4:I9)","v":0},{"$f":"I14+S14","v":0},null,null,"S/TOTAL Pts Doublette ",null,null,null,null,null,{"$f":"SUM(S4:S9)","v":0}]
[null,null,null,null,null,null,null,null,{"$f":"I14/4","v":0},null,null,null,null,null,null,null,null,null,{"$f":"S14/4","v":0}]
[null,"Terrain",{"$f":"'Match 2 recto'!B15","v":0},null,null,null,null,null,"A",null,null,"Terrain",{"$f":"'Match 2 recto'!K15","v":0},null,null,null,null,null,"B"]
[null,null,null,"N°","Nom -Prénom",null,null,"Score","Pts",null,null,null,null,"N°","Nom -Prénom",null,null,"Score","Pts",null,null,{"$f":"C2","v":0},{"$f":"M2","v":0}]
["TRIPLETTE",null,1,null,{"$f":"IF(D18<>\"\",VLOOKUP(D18,$U$18:$W$25,2),\"\")","v":""},null,null,null,{"$f":"IF(H18=\"\",\"\",IF(H18=11,6,IF(H18>R18,6,IF(H18=R18,3,0))))","v":""},null,"TRIPLETTE",{"$f":"IF(B18=\"\",\"\",B18)","v":""},1,null,{"$f":"IF(N18<>\"\",VLOOKUP(N18,$U$18:$W$25,3),\"\")","v":""},null,null,null,{"$f":"IF(R18=\"\",\"\",IF(R18=11,6,IF(R18>H18,6,IF(R18=H18,3,0))))","v":""},null,1,{"$f":"  'Dépôt des Licences'!A48 &\" \" & 'Dépôt des Licences'!B48","v":" "},{"$f":"  'Dépôt des Licences'!A70 &\" \" & 'Dépôt des Licences'!B70","v":" "},1]
[null,null,null,null,{"$f":"IF(D19<>\"\",VLOOKUP(D19,$U$18:$W$25,2),\"\")","v":""},null,null,null,null,null,null,null,null,null,{"$f":"IF(N19<>\"\",VLOOKUP(N19,$U$18:$W$25,3),\"\")","v":""},null,null,null,null,null,2,{"$f":"  'Dépôt des Licences'!A49 &\" \" & 'Dépôt des Licences'!B49","v":" "},{"$f":"  'Dépôt des Licences'!A71 &\" \" & 'Dépôt des Licences'!B71","v":" "},2]
[null,null,null,null,"",null,null,null,null,null,null,null,null,null,"",null,null,null,null,null,3,{"$f":"  'Dépôt des Licences'!A50 &\" \" & 'Dépôt des Licences'!B50","v":" "},{"$f":"  'Dépôt des Licences'!A72 &\" \" & 'Dépôt des Licences'!B72","v":" "},3]
[null,null,2,null,"",null,null,null,{"$f":"IF(H21=\"\",\"\",IF(H21=11,6,IF(H21>R21,6,IF(H21=R21,3,0))))","v":""},null,null,{"$f":"IF(B21=\"\",\"\",B21)","v":""},2,null,"",null,null,null,{"$f":"IF(R21=\"\",\"\",IF(R21=11,6,IF(R21>H21,6,IF(R21=H21,3,0))))","v":""},null,4,{"$f":"  'Dépôt des Licences'!A51 &\" \" & 'Dépôt des Licences'!B51","v":" "},{"$f":"  'Dépôt des Licences'!A73 &\" \" & 'Dépôt des Licences'!B73","v":" "},4]
[null,null,null,null,{"$f":"IF(D22<>\"\",VLOOKUP(D22,$U$18:$W$25,2),\"\")","v":""},null,null,null,null,null,null,null,null,null,"",null,null,null,null,null,5,{"$f":"  'Dépôt des Licences'!A52 &\" \" & 'Dépôt des Licences'!B52","v":" "},{"$f":"  'Dépôt des Licences'!A74 &\" \" & 'Dépôt des Licences'!B74","v":" "},5]
[null,null,null,null,"",null,null,null,null,null,null,null,null,null,"",null,null,null,null,null,6,{"$f":"  'Dépôt des Licences'!A53 &\" \" & 'Dépôt des Licences'!B53","v":" "},{"$f":"  'Dépôt des Licences'!A75 &\" \" & 'Dépôt des Licences'!B75","v":" "},6]
[null,"Joueur Remplacé N°1",null,null,null,null,{"$f":"IF(F24<>\"\",VLOOKUP(F24,$U$18:$W$25,2),\"\")","v":""},null,null,null,null,"Joueur Remplacé N°1",null,null,null,null,{"$f":"IF(P24<>\"\",VLOOKUP(P24,$U$18:$W$25,3),\"\")","v":""},null,null,null,7,{"$f":"  'Dépôt des Licences'!A54 &\" \" & 'Dépôt des Licences'!B54","v":" "},{"$f":"  'Dépôt des Licences'!A76 &\" \" & 'Dépôt des Licences'!B76","v":" "},7]
[null,"Joueur Remplaçant N°1",null,null,null,null,{"$f":"IF(F25<>\"\",VLOOKUP(F25,$U$18:$W$25,2),\"\")","v":""},null,null,null,null,"Joueur Remplaçant N°1",null,null,null,null,{"$f":"IF(P25<>\"\",VLOOKUP(P25,$U$18:$W$25,3),\"\")","v":""},null,null,null,8,{"$f":"  'Dépôt des Licences'!A55 &\" \" & 'Dépôt des Licences'!B55","v":" "},{"$f":"  'Dépôt des Licences'!A77 &\" \" & 'Dépôt des Licences'!B77","v":" "},8]
[null,"Joueur Remplacé N°2",null,null,null,null,"",null,null,null,null,"Joueur Remplacé N°2",null,null,null,null,""]
[null,"Joueur Remplaçant N°2",null,null,null,null,"",null,null,null,null,"Joueur Remplaçant N°2",null,null,null,null,""]
[null,null,"S/TOTAL Pts Triplette ",null,null,null,null,null,{"$f":"SUM(I18:I23)","v":0},{"$f":"I28+S28","v":0},null,null,"S/TOTAL Pts Triplette ",null,null,null,null,null,{"$f":"SUM(S18:S23)","v":0}]
[null,null,null,null,null,null,null,null,{"$f":"I28/6","v":0},{"$f":"I15+I29","v":0},{"$f":"S15+S29","v":0},null,null,null,null,null,null,null,{"$f":"S28/6","v":0}]
[null,null,"Total général équipe  A",null,null,null,"Pts",{"$f":"I14+I28","v":0},null,{"$f":"H30+R30","v":0},null,null,"Total général équipe  B",null,null,null,"Pts",{"$f":"S14+S28","v":0}]
[]
[null,null,null,null,null,null,null,"Nombre de parties Gagnées : ",{"$f":"I15+I29","v":0},{"$f":"I32+S32","v":0},null,null,null,null,null,null,null,"Nombre de parties Gagnées : ",{"$f":"S15+S29","v":0}]
[]
["Equipe gagnante :",null,null,null,null,null,null,{"$f":"IF(H30=R30,\"\",IF(H30>R30,\"A\",\"B\"))","v":""},null,"du club de :",null,null,null,null,{"$f":"IF(H34=\"\",\"\",IF(H34=\"A\",C2,M2))","v":""}]
["Equipe perdante :",null,null,null,null,null,null,{"$f":"IF(H30=R30,\"\",IF(H30<R30,\"A\",\"B\"))","v":""},null,"du club de :",null,null,null,null,{"$f":"IF(H30=R30,\"\",IF(H30<R30,C2,M2))","v":""}]
[null,null,null,null,null,null,null,null,null,"Match nul entre A et B :",null,null,{"$f":"IF(H30=\"\",\"\",IF(H30=R30,\"X\",\"\"))","v":"X"}]
[]
["Signat. capitaine Equipe A",null,null,null,null,null,null,"Nom-Prénom & signature de l'Arbitre ",null,null,null,null,null,null,"Signat. Capitaine Equipe B"]
[{"$f":"CONCATENATE('Dépôt des Licences'!A47,\" \",'Dépôt des Licences'!B47)","v":" "},null,null,null,null,null,null,{"$f":"CONCATENATE('Base de données'!B19,\" \",'Base de données'!B20)","v":" "},null,null,null,null,null,null,{"$f":"CONCATENATE('Dépôt des Licences'!A69,\" \",'Dépôt des Licences'!B69)","v":" "}]
[null,null,null,null,null,null,null,null,null,null,null,null,null,null,null,null,null,null,"F. DELAUNÉ 2024"]
["Dans le cas d'une saisie informatique, on informe uniquement les cellules grisées et l'on fait signer"]

{"sheet":"Match 3 recto","index":8,"n_rows":38,"n_cols":17,"rows_kept":38,"cut":false,"hidden":false,"merged":[[1,5,1,14],[2,5,2,11],[3,5,3,14],[5,1,5,16],[8,1,8,2],[8,3,8,5],[8,7,8,9],[8,10,8,11],[8,13,8,14],[8,15,8,16],[10,1,10,2],[10,3,10,16],[12,6,13,7],[12,15,13,16],[14,1,15,7],[14,10,15,16],[17,1,17,7],[17,10,17,16],[18,5,18,7],[18,14,18,16],[19,3,19,7],[19,12,19,16],[21,1,21,16],[22,3,22,5],[22,12,22,14],[23,2,23,5],[23,6,23,7],[23,11,23,14],[23,15,23,16],[24,2,24,5],[24,6,24,7],[24,11,24,14],[24,15,24,16],[25,2,25,5],[25,6,25,7],[25,11,25,14],[25,15,25,16],[26,2,26,5],[26,6,26,7],[26,11,26,14],[26,15,26,16],[27,2,27,5],[27,6,27,7],[27,11,27,14],[27,15,27,16],[28,2,28,5],[28,6,28,7],[28,11,28,14],[28,15,28,16],[29,2,29,5],[29,6,29,7],[29,11,29,14],[29,15,29,16],[35,0,35,16],[36,0,36,16],[30,2,30,5],[30,6,30,7],[30,11,30,14],[30,15,30,16],[33,0,33,16],[34,0,34,16]]}
[]
[null,null,null,null,null,"CHAMPIONNAT REGIONAL DES CLUBS"]
[null,null,null,null,null,{"$f":"'Base de données'!B1","v":"Jeu Provençal"},null,null,null,null,null,null,{"$f":"'Dépôt des Licences'!U1","v":2024}]
[null,null,null,null,null,"      Feuille de match"]
[]
[null,"Valeur des parties : Doublettes = 4 points / Triplettes = 6 points"]
[]
[]
[null,"DATE :",null,{"$f":"'Base de données'!B2","v":"00:00:00"},null,null,null,"HEURE :",null,null,{"$f":"'Base de données'!B3","v":"00:00:00"},null,null,"DIVISION :",null,{"$f":"'Base de données'!B4","v":0}]
[null,null,null,null,null,null,null,null,null,null,null,null,null,null,null,"."]
[null,"LIEU :",null,{"$f":"'Base de données'!B5","v":0}]
[]
[null,"N° du club :",null,null,null,{"$f":"'Dépôt des Licences'!I91","v":0},"A",null,null,null,"N° du club :",null,null,null,{"$f":"'Dépôt des Licences'!I113","v":0},"B"]
[null,"Nom du Club :",null,null,null,null,null,null,null,null,"Nom du Club :"]
[]
[]
[]
[null,"CAPITAINE club A :",null,null,null,null,null,null,null,null,"CAPITAINE club B :"]
[null,"Licence N°",null,null,null,{"$f":"'Dépôt des Licences'!H91","v":0},null,null,null,null,"Licence N°",null,null,null,{"$f":"'Dépôt des Licences'!H113","v":0}]
[null,"Nom",null,{"$f":"CONCATENATE('Dépôt des Licences'!A91,\" \",'Dépôt des Licences'!B91)","v":" "},null,null,null,null,null,null,"Nom",null,{"$f":"CONCATENATE('Dépôt des Licences'!A113,\" \",'Dépôt des Licences'!B113)","v":" "}]
[]
[null,"Composition des Equipes"]
[null,null,null,"Nom - Prenom",null,null,"N° Licence",null,null,null,null,null,"Nom - Prenom",null,null,"N° Licence"]
[null,1,{"$f":"CONCATENATE('Dépôt des Licences'!A92,\" \",'Dépôt des Licences'!B92)","v":" "},null,null,null,{"$f":"'Dépôt des Licences'!H92","v":0},null,null,null,1,{"$f":"CONCATENATE('Dépôt des Licences'!A114,\" \",'Dépôt des Licences'!B114)","v":" "},null,null,null,{"$f":"'Dépôt des Licences'!H114","v":0}]
[null,2,{"$f":"CONCATENATE('Dépôt des Licences'!A93,\" \",'Dépôt des Licences'!B93)","v":" "},null,null,null,{"$f":"'Dépôt des Licences'!H93","v":0},null,null,null,2,{"$f":"CONCATENATE('Dépôt des Licences'!A115,\" \",'Dépôt des Licences'!B115)","v":" "},null,null,null,{"$f":"'Dépôt des Licences'!H115","v":0}]
[null,3,{"$f":"CONCATENATE('Dépôt des Licences'!A94,\" \",'Dépôt des Licences'!B94)","v":" "},null,null,null,{"$f":"'Dépôt des Licences'!H94","v":0},null,null,null,3,{"$f":"CONCATENATE('Dépôt des Licences'!A116,\" \",'Dépôt des Licences'!B116)","v":" "},null,null,null,{"$f":"'Dépôt des Licences'!H116","v":0}]
[null,4,{"$f":"CONCATENATE('Dépôt des Licences'!A95,\" \",'Dépôt des Licences'!B95)","v":" "},null,null,null,{"$f":"'Dépôt des Licences'!H95","v":0},null,null,null,4,{"$f":"CONCATENATE('Dépôt des Licences'!A117,\" \",'Dépôt des Licences'!B117)","v":" "},null,null,null,{"$f":"'Dépôt des Licences'!H117","v":0}]
[null,5,{"$f":"CONCATENATE('Dépôt des Licences'!A96,\" \",'Dépôt des Licences'!B96)","v":" "},null,null,null,{"$f":"'Dépôt des Licences'!H96","v":0},null,null,null,5,{"$f":"CONCATENATE('Dépôt des Licences'!A118,\" \",'Dépôt des Licences'!B118)","v":" "},null,null,null,{"$f":"'Dépôt des Licences'!H118","v":0}]
[null,6,{"$f":"CONCATENATE('Dépôt des Licences'!A97,\" \",'Dépôt des Licences'!B97)","v":" "},null,null,null,{"$f":"'Dépôt des Licences'!H97","v":0},null,null,null,6,{"$f":"CONCATENATE('Dépôt des Licences'!A119,\" \",'Dépôt des Licences'!B119)","v":" "},null,null,null,{"$f":"'Dépôt des Licences'!H119","v":0}]
[null,7,{"$f":"CONCATENATE('Dépôt des Licences'!A98,\" \",'Dépôt des Licences'!B98)","v":" "},null,null,null,{"$f":"'Dépôt des Licences'!H98","v":0},null,null,null,7,{"$f":"CONCATENATE('Dépôt des Licences'!A120,\" \",'Dépôt des Licences'!B120)","v":" "},null,null,null,{"$f":"'Dépôt des Licences'!H120","v":0}]
[null,8,{"$f":"CONCATENATE('Dépôt des Licences'!A99,\" \",'Dépôt des Licences'!B99)","v":" "},null,null,null,{"$f":"'Dépôt des Licences'!H99","v":0},null,null,null,8,{"$f":"CONCATENATE('Dépôt des Licences'!A121,\" \",'Dépôt des Licences'!B121)","v":" "},null,null,null,{"$f":"'Dépôt des Licences'!H121","v":0}]
[]
[null,null,null,null,null,"En cas d'incident joindre un rapport"]
["FFPJP - Comité Régional AURA"]
["Espace Saint Martin"]
["272 Rue des 20 Toises"]
["38950 SAINT MARTIN LE VINOUX"]
[null,null,null,null,null,null,null,null,null,null,null,null,null,null,null,null,"F. DELAUNÉ 2024"]

{"sheet":"Match 3 verso","index":9,"n_rows":41,"n_cols":24,"rows_kept":41,"cut":false,"hidden":false,"merged":[[0,0,0,18],[7,4,7,6],[1,1,2,1],[1,2,1,7],[1,11,2,11],[1,12,1,17],[2,4,2,6],[2,14,2,16],[5,11,6,11],[5,12,6,12],[5,14,5,16],[5,18,6,18],[7,17,8,17],[7,18,8,18],[3,0,13,0],[3,1,4,1],[3,2,4,2],[3,4,3,6],[3,7,4,7],[3,8,4,8],[4,4,4,6],[5,1,6,1],[5,2,6,2],[5,4,5,6],[7,1,8,1],[7,2,8,2],[15,11,16,11],[15,12,15,17],[16,4,16,6],[16,14,16,16],[11,6,11,8],[11,16,11,18],[12,6,12,8],[12,16,12,18],[13,2,13,7],[13,12,13,17],[3,10,13,10],[3,11,4,11],[6,4,6,6],[6,14,6,16],[3,12,4,12],[3,14,3,16],[3,17,4,17],[7,7,8,7],[7,8,8,8],[7,11,8,11],[7,12,8,12],[7,14,7,16],[3,18,4,18],[4,14,4,16],[17,4,17,6],[17,7,19,7],[17,8,19,8],[18,4,18,6],[19,4,19,6],[20,2,22,2],[20,4,20,6],[20,18,22,18],[17,2,19,2],[8,4,8,6],[8,14,8,16],[9,6,9,8],[9,16,9,18],[10,6,10,8],[10,16,10,18],[5,17,6,17],[5,7,6,7],[5,8,6,8],[15,1,16,1],[15,2,15,7],[29,17,29,18],[23,6,23,8],[23,16,23,18],[24,6,24,8],[24,16,24,18],[25,6,25,8],[25,16,25,18],[22,4,22,6],[22,14,22,16],[17,10,27,10],[17,11,19,11],[17,12,19,12],[17,14,17,16],[26,6,26,8],[26,16,26,18],[27,2,27,7],[27,12,27,17],[17,17,19,17],[17,18,19,18],[18,14,18,16],[19,14,19,16],[20,17,22,17],[40,0,40,18],[17,0,27,0],[17,1,19,1],[20,1,22,1],[33,0,33,6],[33,9,33,12],[33,14,33,18],[34,0,34,6],[34,9,34,12],[34,14,34,18],[37,0,37,6],[37,7,37,13],[37,14,37,18],[38,0,38,6],[38,7,38,13],[38,14,38,18],[20,7,22,7],[20,8,22,8],[20,11,22,11],[20,12,22,12],[20,14,20,16],[21,4,21,6],[21,14,21,16],[29,7,29,8]]}
["Ordre des Rencontres et Feuille de Résultats"]
[null,"Terrain",{"$f":"'Match 3 recto'!B15","v":0},null,null,null,null,null,"A",null,null,"Terrain",{"$f":"'Match 3 recto'!K15","v":0},null,null,null,null,null,"B"]
[null,null,null,"N°","Nom -Prénom",null,null,"Score","Pts",null,null,null,null,"N°","Nom -Prénom",null,null,"Score","Pts",null,null,{"$f":"C2","v":0},{"$f":"M2","v":0}]
["DOUBLETTE",null,1,null,{"$f":"IF(D4<>\"\",VLOOKUP(D4,$U$4:$W$11,2),\"\")","v":""},null,null,null,{"$f":"IF(H4=\"\",\"\",IF(H4=11,4,IF(H4>R4,4,IF(H4=R4,2,0))))","v":""},null,"DOUBLETTE",{"$f":"IF(B4=\"\",\"\",B4)","v":""},1,null,{"$f":"IF(N4<>\"\",VLOOKUP(N4,$U$4:$W$11,3),\"\")","v":""},null,null,null,{"$f":"IF(R4=\"\",\"\",IF(R4=11,4,IF(R4>H4,4,IF(R4=H4,2,0))))","v":""},null,1,{"$f":"  'Dépôt des Licences'!A92 &\" \" & 'Dépôt des Licences'!B92","v":" "},{"$f":"  'Dépôt des Licences'!A114 &\" \" & 'Dépôt des Licences'!B114","v":" "},1]
[null,null,null,null,{"$f":"IF(D5<>\"\",VLOOKUP(D5,$U$4:$W$11,2),\"\")","v":""},null,null,null,null,null,null,null,null,null,{"$f":"IF(N5<>\"\",VLOOKUP(N5,$U$4:$W$11,3),\"\")","v":""},null,null,null,null,null,2,{"$f":"  'Dépôt des Licences'!A93 &\" \" & 'Dépôt des Licences'!B93","v":" "},{"$f":"  'Dépôt des Licences'!A115 &\" \" & 'Dépôt des Licences'!B115","v":" "},2]
[null,null,2,null,"",null,null,null,{"$f":"IF(H6=\"\",\"\",IF(H6=11,4,IF(H6>R6,4,IF(H6=R6,2,0))))","v":""},null,null,{"$f":"IF(B6=\"\",\"\",B6)","v":""},2,null,"",null,null,null,{"$f":"IF(R6=\"\",\"\",IF(R6=11,4,IF(R6>H6,4,IF(R6=H6,2,0))))","v":""},null,3,{"$f":"  'Dépôt des Licences'!A94 &\" \" & 'Dépôt des Licences'!B94","v":" "},{"$f":"  'Dépôt des Licences'!A116 &\" \" & 'Dépôt des Licences'!B116","v":" "},3]
[null,null,null,null,"",null,null,null,null,null,null,null,null,null,"",null,null,null,null,null,4,{"$f":"  'Dépôt des Licences'!A95 &\" \" & 'Dépôt des Licences'!B95","v":" "},{"$f":"  'Dépôt des Licences'!A117 &\" \" & 'Dépôt des Licences'!B117","v":" "},4]
[null,null,3,null,"",null,null,null,{"$f":"IF(H8=\"\",\"\",IF(H8=11,4,IF(H8>R8,4,IF(H8=R8,2,0))))","v":""},null,null,{"$f":"IF(B8=\"\",\"\",B8)","v":""},3,null,"",null,null,null,{"$f":"IF(R8=\"\",\"\",IF(R8=11,4,IF(R8>H8,4,IF(R8=H8,2,0))))","v":""},null,5,{"$f":"  'Dépôt des Licences'!A96 &\" \" & 'Dépôt des Licences'!B96","v":" "},{"$f":"  'Dépôt des Licences'!A118 &\" \" & 'Dépôt des Licences'!B118","v":" "},5]
[null,null,null,null,{"$f":"IF(D9<>\"\",VLOOKUP(D9,$U$4:$W$11,2),\"\")","v":""},null,null,null,null,null,null,null,null,null,"",null,null,null,null,null,6,{"$f":"  'Dépôt des Licences'!A97 &\" \" & 'Dépôt des Licences'!B97","v":" "},{"$f":"  'Dépôt des Licences'!A119 &\" \" & 'Dépôt des Licences'!B119","v":" "},6]
[null,"Joueur Remplacé N°1",null,null,null,null,{"$f":"IF(F10<>\"\",VLOOKUP(F10,$U$4:$W$11,2),\"\")","v":""},null,null,null,null,"Joueur Remplacé N°1",null,null,null,null,{"$f":"IF(P10<>\"\",VLOOKUP(P10,$U$4:$W$11,3),\"\")","v":""},null,null,null,7,{"$f":"  'Dépôt des Licences'!A98 &\" \" & 'Dépôt des Licences'!B98","v":" "},{"$f":"  'Dépôt des Licences'!A120 &\" \" & 'Dépôt des Licences'!B120","v":" "},7]
[null,"Joueur Remplaçant N°1",null,null,null,null,{"$f":"IF(F11<>\"\",VLOOKUP(F11,$U$4:$W$11,2),\"\")","v":""},null,null,null,null,"Joueur Remplaçant N°1",null,null,null,null,{"$f":"IF(P11<>\"\",VLOOKUP(P11,$U$4:$W$11,3),\"\")","v":""},null,null,null,8,{"$f":"  'Dépôt des Licences'!A99 &\" \" & 'Dépôt des Licences'!B99","v":" "},{"$f":"  'Dépôt des Licences'!A121 &\" \" & 'Dépôt des Licences'!B121","v":" "},8]
[null,"Joueur Remplacé N°2",null,null,null,null,"",null,null,null,null,"Joueur Remplacé N°2",null,null,null,null,""]
[null,"Joueur Remplaçant N°2",null,null,null,null,"",null,null,null,null,"Joueur Remplaçant N°2",null,null,null,null,""]
[null,null,"S/TOTAL Pts Doublette ",null,null,null,null,null,{"$f":"SUM(I4:I9)","v":0},{"$f":"I14+S14","v":0},null,null,"S/TOTAL Pts Doublette ",null,null,null,null,null,{"$f":"SUM(S4:S9)","v":0}]
[null,null,null,null,null,null,null,null,{"$f":"I14/4","v":0},null,null,null,null,null,null,null,null,null,{"$f":"S14/4","v":0}]
[null,"Terrain",{"$f":"'Match 3 recto'!B15","v":0},null,null,null,null,null,"A",null,null,"Terrain",{"$f":"'Match 3 recto'!K15","v":0},null,null,null,null,null,"B"]
[null,null,null,"N°","Nom -Prénom",null,null,"Score","Pts",null,null,null,null,"N°","Nom -Prénom",null,null,"Score","Pts",null,null,{"$f":"C2","v":0},{"$f":"M2","v":0}]
["TRIPLETTE",null,1,null,{"$f":"IF(D18<>\"\",VLOOKUP(D18,$U$18:$W$25,2),\"\")","v":""},null,null,null,{"$f":"IF(H18=\"\",\"\",IF(H18=11,6,IF(H18>R18,6,IF(H18=R18,3,0))))","v":""},null,"TRIPLETTE",{"$f":"IF(B18=\"\",\"\",B18)","v":""},1,null,{"$f":"IF(N18<>\"\",VLOOKUP(N18,$U$18:$W$25,3),\"\")","v":""},null,null,null,{"$f":"IF(R18=\"\",\"\",IF(R18=11,6,IF(R18>H18,6,IF(R18=H18,3,0))))","v":""},null,1,{"$f":"  'Dépôt des Licences'!A92 &\" \" & 'Dépôt des Licences'!B92","v":" "},{"$f":"  'Dépôt des Licences'!A114 &\" \" & 'Dépôt des Licences'!B114","v":" "},1]
[null,null,null,null,{"$f":"IF(D19<>\"\",VLOOKUP(D19,$U$18:$W$25,2),\"\")","v":""},null,null,null,null,null,null,null,null,null,{"$f":"IF(N19<>\"\",VLOOKUP(N19,$U$18:$W$25,3),\"\")","v":""},null,null,null,null,null,2,{"$f":"  'Dépôt des Licences'!A93 &\" \" & 'Dépôt des Licences'!B93","v":" "},{"$f":"  'Dépôt des Licences'!A115 &\" \" & 'Dépôt des Licences'!B115","v":" "},2]
[null,null,null,null,"",null,null,null,null,null,null,null,null,null,"",null,null,null,null,null,3,{"$f":"  'Dépôt des Licences'!A94 &\" \" & 'Dépôt des Licences'!B94","v":" "},{"$f":"  'Dépôt des Licences'!A116 &\" \" & 'Dépôt des Licences'!B116","v":" "},3]
[null,null,2,null,"",null,null,null,{"$f":"IF(H21=\"\",\"\",IF(H21=11,6,IF(H21>R21,6,IF(H21=R21,3,0))))","v":""},null,null,{"$f":"IF(B21=\"\",\"\",B21)","v":""},2,null,"",null,null,null,{"$f":"IF(R21=\"\",\"\",IF(R21=11,6,IF(R21>H21,6,IF(R21=H21,3,0))))","v":""},null,4,{"$f":"  'Dépôt des Licences'!A95 &\" \" & 'Dépôt des Licences'!B95","v":" "},{"$f":"  'Dépôt des Licences'!A117 &\" \" & 'Dépôt des Licences'!B117","v":" "},4]
[null,null,null,null,{"$f":"IF(D22<>\"\",VLOOKUP(D22,$U$18:$W$25,2),\"\")","v":""},null,null,null,null,null,null,null,null,null,"",null,null,null,null,null,5,{"$f":"  'Dépôt des Licences'!A96 &\" \" & 'Dépôt des Licences'!B96","v":" "},{"$f":"  'Dépôt des Licences'!A118 &\" \" & 'Dépôt des Licences'!B118","v":" "},5]
[null,null,null,null,"",null,null,null,null,null,null,null,null,null,"",null,null,null,null,null,6,{"$f":"  'Dépôt des Licences'!A97 &\" \" & 'Dépôt des Licences'!B97","v":" "},{"$f":"  'Dépôt des Licences'!A119 &\" \" & 'Dépôt des Licences'!B119","v":" "},6]
[null,"Joueur Remplacé N°1",null,null,null,null,{"$f":"IF(F24<>\"\",VLOOKUP(F24,$U$18:$W$25,2),\"\")","v":""},null,null,null,null,"Joueur Remplacé N°1",null,null,null,null,{"$f":"IF(P24<>\"\",VLOOKUP(P24,$U$18:$W$25,3),\"\")","v":""},null,null,null,7,{"$f":"  'Dépôt des Licences'!A98 &\" \" & 'Dépôt des Licences'!B98","v":" "},{"$f":"  'Dépôt des Licences'!A120 &\" \" & 'Dépôt des Licences'!B120","v":" "},7]
[null,"Joueur Remplaçant N°1",null,null,null,null,{"$f":"IF(F25<>\"\",VLOOKUP(F25,$U$18:$W$25,2),\"\")","v":""},null,null,null,null,"Joueur Remplaçant N°1",null,null,null,null,{"$f":"IF(P25<>\"\",VLOOKUP(P25,$U$18:$W$25,3),\"\")","v":""},null,null,null,8,{"$f":"  'Dépôt des Licences'!A99 &\" \" & 'Dépôt des Licences'!B99","v":" "},{"$f":"  'Dépôt des Licences'!A121 &\" \" & 'Dépôt des Licences'!B121","v":" "},8]
[null,"Joueur Remplacé N°2",null,null,null,null,"",null,null,null,null,"Joueur Remplacé N°2",null,null,null,null,""]
[null,"Joueur Remplaçant N°2",null,null,null,null,"",null,null,null,null,"Joueur Remplaçant N°2",null,null,null,null,""]
[null,null,"S/TOTAL Pts Triplette ",null,null,null,null,null,{"$f":"SUM(I18:I23)","v":0},{"$f":"I28+S28","v":0},null,null,"S/TOTAL Pts Triplette ",null,null,null,null,null,{"$f":"SUM(S18:S23)","v":0}]
[null,null,null,null,null,null,null,null,{"$f":"I28/6","v":0},{"$f":"I15+I29","v":0},{"$f":"S15+S29","v":0},null,null,null,null,null,null,null,{"$f":"S28/6","v":0}]
[null,null,"Total général équipe  A",null,null,null,"Pts",{"$f":"I14+I28","v":0},null,{"$f":"H30+R30","v":0},null,null,"Total général équipe  B",null,null,null,"Pts",{"$f":"S14+S28","v":0}]
[]
[null,null,null,null,null,null,null,"Nombre de parties Gagnées : ",{"$f":"I15+I29","v":0},{"$f":"I32+S32","v":0},null,null,null,null,null,null,null,"Nombre de parties Gagnées : ",{"$f":"S15+S29","v":0}]
[]
["Equipe gagnante :",null,null,null,null,null,null,{"$f":"IF(H30=R30,\"\",IF(H30>R30,\"A\",\"B\"))","v":""},null,"du club de :",null,null,null,null,{"$f":"IF(H34=\"\",\"\",IF(H34=\"A\",C2,M2))","v":""}]
["Equipe perdante :",null,null,null,null,null,null,{"$f":"IF(H30=R30,\"\",IF(H30<R30,\"A\",\"B\"))","v":""},null,"du club de :",null,null,null,null,{"$f":"IF(H30=R30,\"\",IF(H30<R30,C2,M2))","v":""}]
[null,null,null,null,null,null,null,null,null,"Match nul entre A et B :",null,null,{"$f":"IF(H30=\"\",\"\",IF(H30=R30,\"X\",\"\"))","v":"X"}]
[]
["Signat. capitaine Equipe A",null,null,null,null,null,null,"Nom-Prénom & signature de l'Arbitre ",null,null,null,null,null,null,"Signat. Capitaine Equipe B"]
[{"$f":"CONCATENATE('Dépôt des Licences'!A91,\" \",'Dépôt des Licences'!B91)","v":" "},null,null,null,null,null,null,{"$f":"CONCATENATE('Base de données'!B19,\" \",'Base de données'!B20)","v":" "},null,null,null,null,null,null,{"$f":"CONCATENATE('Dépôt des Licences'!A113,\" \",'Dépôt des Licences'!B113)","v":" "}]
[null,null,null,null,null,null,null,null,null,null,null,null,null,null,null,null,null,null,"F. DELAUNÉ 2024"]
["Dans le cas d'une saisie informatique, on informe uniquement les cellules grisées et l'on fait signer"]

{"sheet":"Rapport sur la compatibilité","index":10,"n_rows":24,"n_cols":6,"rows_kept":24,"cut":false,"hidden":true,"merged":[]}
["s","Rapport sur la compatibilité concernant CDC-O Fichier de base 2023.xls"]
[null,"Exécuté le 09/10/2023 18:54"]
[]
[null,"Les fonctionnalités suivantes de ce classeur ne sont pas prises en charge dans les versions antérieures d’Excel. Ces fonctionnalités seront peut-être perdues ou dégradées si vous ouvrez le classeur dans une version antérieure du programme ou si vous l’enregistrez dans un format de fichier antérieur."]
[]
[null,"Perte significative de fonctionnalité",null,null,"Nb d'occurrences","Version"]
[]
[null,"Certaines cellules ont plus de formats conditionnels que ce qui est pris en charge par le format de fichier sélectionné. Seules les trois premières conditions seront affichées dans les versions antérieures d'Excel.",null,null,36]
[null,null,null,null,"Feuille de Match verso'!O6:T6","Excel 97-2003"]
[null,null,null,null,"Feuille de Match verso'!O9:T9"]
[null,null,null,null,"Feuille de Match verso'!O15:T15"]
[null,null,null,null,"Feuille de Match verso'!O18:T18"]
[null,null,null,null,"Feuille de Match verso'!O28:T28"]
[null,null,null,null,"Feuille de Match verso'!O31:T31"]
[]
[null,"Certaines cellules contiennent une mise en forme conditionnelle avec l'option « Interrompre si Vrai » désactivée. Les versions antérieures d'Excel ne reconnaissent pas cette option et s'interrompront après la première condition vraie.",null,null,2]
[null,null,null,null,"Licence_Equipe2'!A13","Excel 97-2003"]
[]
[]
[null,"Perte mineure de fidélité"]
[]
[null,"Certaines formules de ce classeur sont liées à d'autres classeurs qui sont fermés. Si ces formules sont recalculées dans une version antérieure d'Excel sans ouvrir les classeurs liées, les caractères au-delà de la limite de 255 caractères ne seront pas renvoyés.",null,null,"6\nNoms définis","Excel 97-2003"]
[]
[null,"Certaines cellules ou certains styles de ce classeur contiennent une mise en forme qui n'est pas prise en charge par le format de fichier sélectionné. Ces formats seront convertis au format le plus proche disponible.",null,null,52,"Excel 97-2003"]